fUSD/lending_fUSD_20240115
["ID","MTS","AMOUNT","RATE_DAILY","PERIOD"]
[311643564,1705277475494,-3095.36,0.00030684,2]
[311643565,1705277475503,-500.0,0.00030684,2]
[311643566,1705277475513,-500.0,0.00030684,2]
[311643567,1705277475522,-500.0,0.00030684,2]
[311643568,1705277475531,-1134.94,0.00030684,2]
[311643569,1705277475545,-500.0,0.00030684,2]
[311643570,1705277475554,-757.24,0.00030684,2]
[311643571,1705277475564,-964.75,0.00030684,2]
[311643572,1705277475574,-1706.15,0.00030684,2]
[311643573,1705277475586,-500.0,0.00030684,2]
[311643574,1705277475595,-1357.74,0.00030684,2]
[311643575,1705277475605,-8176.33,0.00030684,2]
[311643576,1705277475614,-754.74,0.00030684,2]
[311643577,1705277475623,-641.27,0.00030684,2]
[311643578,1705277475632,-500.0,0.00030684,2]
[311643579,1705277475642,-500.0,0.00030684,2]
[311643580,1705277475651,-869.38,0.00030684,2]
[311643581,1705277475660,-5976.33,0.00030684,2]
[311643582,1705277475669,-293.89554153,0.00030684,2]
[311643583,1705277475680,-500.0,0.00030684,2]
[311643584,1705277475689,-454.08299712,0.00030684,2]
[311643585,1705277475698,-500.0,0.00030684,2]
[311643586,1705277475708,-500.0,0.00030684,2]
[311643587,1705277475717,-500.0,0.00030684,2]
[311643588,1705277475727,-500.0,0.00030684,2]
[311643589,1705277475736,-632.48,0.00030684,2]
[311643590,1705277475746,-544.53,0.00030684,2]
[311643591,1705277475755,-639.58,0.00030684,2]
[311643592,1705277475765,-500.0,0.00030684,2]
[311643593,1705277475847,-500.0,0.00030684,2]
[311643594,1705277475857,-1632.81,0.00030684,2]
[311643595,1705277475866,-500.0,0.00030684,2]
[311643596,1705277475876,-500.0,0.00030684,2]
[311643597,1705277475885,-2813.24,0.00030684,2]
[311643598,1705277475894,-5482.9,0.00030684,2]
[311643599,1705277475903,-500.0,0.00030684,2]
[311643600,1705277475912,-500.0,0.00030684,2]
[311643601,1705277475921,-500.0,0.00030684,2]
[311643602,1705277475931,-958.37,0.00030684,2]
[311643603,1705277475941,-975.0,0.00030684,2]
[311643604,1705277475950,-1188.84,0.00030684,2]
[311643605,1705277475959,-500.0,0.00030684,2]
[311643606,1705277475968,-500.0,0.00030684,2]
[311643607,1705277475978,-1237.2,0.00030684,2]
[311643608,1705277475987,-500.0,0.00030684,2]
[311643609,1705277475997,-500.0,0.00030684,2]
[311643610,1705277476006,-500.0,0.00030684,2]
[311643611,1705277476015,-1319.59,0.00030684,2]
[311643612,1705277476025,-500.0,0.00030684,2]
[311643613,1705277476034,-933.8,0.00030684,2]
[311643614,1705277476043,-500.0,0.00030684,2]
[311643615,1705277476052,-2610.59,0.00030684,2]
[311643616,1705277476061,-2614.45,0.00030684,2]
[311643617,1705277476070,-500.0,0.00030684,2]
[311643618,1705277476080,-3186.36,0.00030684,2]
[311643619,1705277476089,-833.74,0.00030684,2]
[311643620,1705277476098,-515.9,0.00030684,2]
[311643621,1705277476107,-5492.08,0.00030684,2]
[311643622,1705277476117,-1220.95,0.00030684,2]
[311643623,1705277476126,-500.0,0.00030684,2]
[311643624,1705277476136,-1989.19,0.00030684,2]
[311643625,1705277476146,-529.59,0.00030684,2]
[311643626,1705277476155,-722.84,0.00030684,2]
[311643627,1705277476165,-500.0,0.00030684,2]
[311643628,1705277476188,-638.39,0.00030684,2]
[311643629,1705277476197,-500.0,0.00030684,2]
[311643630,1705277476207,-4022.18,0.00030684,2]
[311643631,1705277476217,-500.0,0.00030684,2]
[311643632,1705277476226,-753.39,0.00030684,2]
[311643633,1705277476235,-2493.03,0.00030684,2]
[311643634,1705277476245,-606.28,0.00030684,2]
[311643635,1705277476255,-699.97,0.00030684,2]
[311643636,1705277476264,-500.0,0.00030684,2]
[311643637,1705277476273,-500.0,0.00030684,2]
[311643638,1705277476282,-500.0,0.00030684,2]
[311643639,1705277476292,-500.0,0.00030684,2]
[311643640,1705277476302,-1805.56,0.00030684,2]
[311643641,1705277476311,-1129.32,0.00030684,2]
[311643642,1705277476321,-952.46,0.00030684,2]
[311643643,1705277476330,-1191.83,0.00030684,2]
[311643644,1705277476339,-635.15,0.00030684,2]
[311643645,1705277476349,-500.0,0.00030684,2]
[311643646,1705277476358,-500.0,0.00030684,2]
[311643647,1705277476368,-500.0,0.00030684,2]
[311643648,1705277476377,-2730.63,0.00030684,2]
[311643649,1705277476386,-500.0,0.00030684,2]
[311643650,1705277476395,-500.0,0.00030684,2]
[311643651,1705277476404,-792.34,0.00030684,2]
[311643652,1705277476414,-500.0,0.00030684,2]
[311643653,1705277476424,-500.0,0.00030684,2]
[311643654,1705277476436,-500.0,0.00030684,2]
[311643655,1705277476445,-500.0,0.00030684,2]
[311643656,1705277476455,-500.0,0.00030684,2]
[311643657,1705277476464,-1955.82,0.00030684,2]
[311643658,1705277476473,-872.86,0.00030684,2]
[311643659,1705277476482,-500.0,0.00030684,2]
[311643660,1705277476492,-1196.3,0.00030684,2]
[311643661,1705277476501,-500.0,0.00030684,2]
[311643662,1705277476510,-500.0,0.00030684,2]
[311643663,1705277476519,-2930.38,0.00030684,2]
[311643664,1705277476528,-734.66,0.00030684,2]
[311643665,1705277476538,-664.22,0.00030684,2]
[311643666,1705277476547,-620.03,0.00030684,2]
[311643667,1705277476557,-1459.61,0.00030684,2]
[311643668,1705277476567,-2457.2,0.00030684,2]
[311643669,1705277476576,-1176.16,0.00030684,2]
[311643670,1705277476586,-500.0,0.00030684,2]
[311643671,1705277476595,-500.0,0.00030684,2]
[311643672,1705277476604,-1202.75,0.00030684,2]
[311643673,1705277476613,-500.0,0.00030684,2]
[311643674,1705277476623,-500.0,0.00030684,2]
[311643675,1705277476633,-500.0,0.00030684,2]
[311643676,1705277476643,-1749.56,0.00030684,2]
[311643677,1705277476654,-824.23,0.00030684,2]
[311643678,1705277476664,-500.0,0.00030684,2]
[311643679,1705277476673,-500.0,0.00030684,2]
[311643680,1705277476685,-500.0,0.00030684,2]
[311643681,1705277476694,-1218.21,0.00030684,2]
[311643682,1705277476705,-500.0,0.00030684,2]
[311643683,1705277476714,-500.0,0.00030684,2]
[311643684,1705277476724,-673.0,0.00030684,2]
[311643685,1705277476734,-500.0,0.00030684,2]
[311643686,1705277476744,-932.5,0.00030684,2]
[311643687,1705277476753,-500.0,0.00030684,2]
[311643688,1705277476762,-689.37,0.00030684,2]
[311643689,1705277476772,-500.0,0.00030684,2]
[311643690,1705277476783,-500.0,0.00030684,2]
[311643691,1705277476793,-1616.85,0.00030684,2]
[311643692,1705277476802,-1809.44,0.00030684,2]
[311643693,1705277476811,-577.34,0.00030684,2]
[311643694,1705277476820,-558.62,0.00030684,2]
[311643695,1705277476829,-224.60344315,0.00030684,2]
[311643696,1705277476838,-500.0,0.00030684,2]
[311643697,1705277476848,-500.0,0.00030684,2]
[311643698,1705277476859,-710.64,0.00030684,2]
[311643699,1705277476868,-860.54,0.00030684,2]
[311643700,1705277476877,-1356.93,0.00030684,2]
[311643701,1705277476887,-1345.44,0.00030684,2]
[311643702,1705277476897,-500.0,0.00030684,2]
[311643703,1705277476907,-500.0,0.00030684,2]
[311643704,1705277476917,-1179.27,0.00030684,2]
[311643705,1705277476926,-500.0,0.00030684,2]
[311643706,1705277476940,-1504.67,0.00030684,2]
[311643707,1705277476949,-951.57,0.00030684,2]
[311643708,1705277476959,-1102.3,0.00030684,2]
[311643709,1705277476969,-500.0,0.00030684,2]
[311643710,1705277476978,-500.0,0.00030684,2]
[311643711,1705277476988,-500.0,0.00030684,2]
[311643712,1705277476998,-13106.86,0.00030684,2]
[311643713,1705277477007,-500.0,0.00030684,2]
[311643714,1705277477017,-500.0,0.00030684,2]
[311643715,1705277477027,-500.0,0.00030684,2]
[311643716,1705277477036,-1690.87,0.00030684,2]
[311643717,1705277477045,-940.22,0.00030684,2]
[311643718,1705277477054,-505.07,0.00030684,2]
[311643719,1705277477064,-2995.14,0.00030684,2]
[311643720,1705277477074,-4220.59,0.00030684,2]
[311643721,1705277477083,-845.86,0.00030684,2]
[311643722,1705277477092,-500.0,0.00030684,2]
[311643723,1705277477102,-500.0,0.00030684,2]
[311643724,1705277477111,-500.0,0.00030684,2]
[311643725,1705277477121,-500.0,0.00030684,2]
[311643726,1705277477130,-500.0,0.00030684,2]
[311643727,1705277477139,-1276.8,0.00030684,2]
[311643728,1705277477148,-500.0,0.00030684,2]
[311643729,1705277477158,-500.0,0.00030684,2]
[311643730,1705277477167,-500.0,0.00030684,2]
[311643731,1705277477176,-500.0,0.00030684,2]
[311643732,1705277477187,-1216.33,0.00030684,2]
[311643733,1705277477195,-717.5,0.00030684,2]
[311643734,1705277477204,-16450.31,0.00030684,2]
[311643735,1705277477214,-683.01,0.00030684,2]
[311643736,1705277477222,-5311.11,0.00030684,2]
[311643737,1705277477231,-500.0,0.00030684,2]
[311643738,1705277477241,-500.0,0.00030684,2]
[311643739,1705277477250,-500.0,0.00030684,2]
[311643740,1705277477259,-689.74,0.00030684,2]
[311643741,1705277477269,-4702.16,0.00030684,2]
[311643742,1705277477279,-294.76620618,0.00030684,2]
[311643743,1705277477289,-500.0,0.00030684,2]
[311643744,1705277477299,-500.0,0.00030684,2]
[311643745,1705277477309,-500.0,0.00030684,2]
[311643746,1705277477319,-550.35,0.00030684,2]
[311643747,1705277477329,-1214.22,0.00030684,2]
[311643748,1705277477339,-1585.8,0.00030684,2]
[311643749,1705277477350,-1455.55,0.00030684,2]
[311643750,1705277477360,-859.24,0.00030684,2]
[311643751,1705277477369,-500.0,0.00030684,2]
[311643752,1705277477379,-2411.53,0.00030684,2]
[311643753,1705277477389,-742.69,0.00030684,2]
[311643754,1705277477399,-500.0,0.00030684,2]
[311643755,1705277477408,-540.08,0.00030684,2]
[311643756,1705277477418,-14102.31,0.00030684,2]
[311643757,1705277477430,-785.32,0.00030684,2]
[311643758,1705277477440,-178.69322615,0.00030684,2]
[311643759,1705277477450,-2366.42,0.00030684,2]
[311643760,1705277477459,-500.0,0.00030684,2]
[311643761,1705277477468,-1108.77,0.00030684,2]
[311643762,1705277477478,-761.74,0.00030684,2]
[311643763,1705277477488,-896.86,0.00030684,2]
[311643764,1705277477497,-4496.8,0.00030684,2]
[311643765,1705277477507,-1690.92,0.00030684,2]
[311643766,1705277477516,-500.0,0.00030684,2]
[311643767,1705277477526,-1482.08,0.00030684,2]
[311643768,1705277477536,-714.61,0.00030684,2]
[311643769,1705277477546,-536.9,0.00030684,2]
[311643770,1705277477556,-1757.02,0.00030684,2]
[311643771,1705277477568,-512.72214582,0.00030684,2]
[311643772,1705277477578,-1779.86,0.00030684,2]
[311643773,1705277477588,-840.17,0.00030684,2]
[311643774,1705277477598,-981.9,0.00030684,2]
[311643775,1705277477607,-500.0,0.00030684,2]
[311643776,1705277477617,-1154.42,0.00030684,2]
[311643777,1705277477627,-500.0,0.00030684,2]
[311643778,1705277477636,-500.0,0.00030684,2]
[311643779,1705277477646,-500.0,0.00030684,2]
[311643780,1705277477657,-4315.17,0.00030684,2]
[311643781,1705277477666,-1925.13,0.00030684,2]
[311643782,1705277477676,-970.07,0.00030684,2]
[311643783,1705277477689,-500.0,0.00030684,2]
[311643784,1705277477699,-1326.08,0.00030684,2]
[311643785,1705277477708,-166.793448,0.00030684,7]
[311643786,1705277477718,-166.793448,0.00030684,7]
[311643787,1705277477728,-151.0,0.00030684,7]
[311643788,1705277477737,-251.316492,0.00030684,7]
[311643789,1705277477747,-273.09299,0.00030684,7]
[311643790,1705277477757,-151.0,0.00030684,7]
[311643791,1705277477767,-151.0,0.00030684,7]
[311643792,1705277477776,-151.0,0.00030684,7]
[311643793,1705277477786,-151.0,0.00030684,7]
[311643794,1705277477796,-151.0,0.00030684,7]
[311643795,1705277477806,-151.0,0.00030684,7]
[311643796,1705277477815,-1349.92984,0.00030684,7]
[311643797,1705277477825,-1349.92984,0.00030684,7]
[311643798,1705277477835,-1349.92984,0.00030684,7]
[311643799,1705277477844,-1349.92984,0.00030684,7]
[311643800,1705277477853,-209.809226,0.00030684,7]
[311643801,1705277477863,-209.809226,0.00030684,7]
[311643802,1705277477872,-209.809226,0.00030684,7]
[311643803,1705277477882,-209.809226,0.00030684,7]
[311643804,1705277477892,-182.267775,0.00030684,7]
[311643805,1705277477901,-182.267775,0.00030684,7]
[311643806,1705277477911,-182.267775,0.00030684,7]
[311643807,1705277477921,-182.267775,0.00030684,7]
[311643808,1705277477932,-151.0,0.00030684,7]
[311643809,1705277477942,-151.0,0.00030684,7]
[311643810,1705277477951,-517.524431,0.00030684,7]
[311643811,1705277477961,-517.524431,0.00030684,7]
[311643812,1705277477971,-517.524431,0.00030684,7]
[311643813,1705277477981,-517.524431,0.00030684,7]
[311643814,1705277477991,-210.0,0.0003079,2]
[311643815,1705277478000,-207.0,0.0003079,2]
[311643816,1705277478009,-500.0,0.0003079,10]
[311643817,1705277478019,-500.0,0.0003079,10]
[311643818,1705277478029,-500.0,0.0003079,7]
[311643819,1705277478039,-1611.38511704,0.00030837,5]
[311643820,1705277478049,-1426.176,0.00030838,2]
[311643821,1705277478058,-3000.0,0.0003086,2]
[311643822,1705277478068,-151.0,0.00030889,120]
[311643823,1705277478077,-150.0,0.00030918,2]
[311643824,1705277478087,-2078.55208734,0.00030955,2]
[311643825,1705277478097,-150.0,0.00030957,2]
[311643826,1705277478106,-500.0,0.00030958,2]
[311643827,1705277478116,-500.0,0.00030958,2]
[311643828,1705277478126,-500.0,0.00030958,2]
[311643829,1705277478136,-500.0,0.00030958,2]
[311643830,1705277478145,-500.0,0.00030958,2]
[311643831,1705277478155,-500.0,0.00030958,2]
[311643832,1705277478165,-500.0,0.00030958,2]
[311643833,1705277478174,-500.0,0.00030958,2]
[311643834,1705277478185,-500.0,0.00030958,2]
[311643835,1705277478195,-500.0,0.00030958,2]
[311643836,1705277478204,-500.0,0.00030958,2]
[311643837,1705277478214,-542.22,0.00030958,2]
[311643838,1705277478223,-687.9,0.00030958,2]
[311643839,1705277478233,-500.0,0.00030958,2]
[311643840,1705277478243,-500.0,0.00030958,2]
[311643841,1705277478252,-500.0,0.00030958,2]
[311643842,1705277478262,-500.0,0.00030958,2]
[311643843,1705277478271,-500.0,0.00030958,2]
[311643844,1705277478281,-500.0,0.00030958,2]
[311643845,1705277478291,-500.0,0.00030958,2]
[311643846,1705277478300,-329.1375712,0.00030958,2]
[311643847,1705277478310,-213.59935008,0.00030958,2]
[311643848,1705277478320,-500.0,0.00030958,2]
[311643849,1705277478330,-500.0,0.00030958,2]
[311643850,1705277478340,-500.0,0.00030958,2]
[311643851,1705277478349,-500.0,0.00030958,2]
[311643852,1705277478359,-578.66,0.00030958,2]
[311643853,1705277478369,-500.0,0.00030958,2]
[311643854,1705277478379,-500.0,0.00030958,2]
[311643855,1705277478389,-561.91283122,0.00030958,2]
[311643856,1705277478399,-500.0,0.00030958,2]
[311643857,1705277478408,-859.01,0.00030958,2]
[311643858,1705277478418,-500.0,0.00030958,2]
[311643859,1705277478428,-500.0,0.00030958,2]
[311643860,1705277478440,-500.0,0.00030958,2]
[311643861,1705277478449,-500.0,0.00030958,2]
[311643862,1705277478459,-500.0,0.00030958,2]
[311643863,1705277478468,-500.0,0.00030958,2]
[311643864,1705277478478,-500.0,0.00030958,2]
[311643865,1705277478487,-459.08161393,0.00030958,2]
[311643866,1705277478497,-500.0,0.00030958,2]
[311643867,1705277478507,-500.0,0.00030958,2]
[311643868,1705277478516,-500.0,0.00030958,2]
[311643869,1705277478525,-500.0,0.00030958,2]
[311643870,1705277478536,-500.0,0.00030958,2]
[311643871,1705277478545,-215.87340794,0.00030958,2]
[311643872,1705277478555,-500.0,0.00030958,2]
[311643873,1705277478565,-500.0,0.00030958,2]
[311643874,1705277478575,-500.0,0.00030958,2]
[311643875,1705277478585,-641.66,0.00030958,2]
[311643876,1705277478595,-500.0,0.00030958,2]
[311643877,1705277478604,-500.0,0.00030958,2]
[311643878,1705277478614,-500.0,0.00030958,2]
[311643879,1705277478625,-500.0,0.00030958,2]
[311643880,1705277478635,-500.0,0.00030958,2]
[311643881,1705277478644,-553.87,0.00030958,2]
[311643882,1705277478654,-500.0,0.00030958,2]
[311643883,1705277478663,-500.0,0.00030958,2]
[311643884,1705277478673,-500.0,0.00030958,2]
[311643885,1705277478683,-500.0,0.00030958,2]
[311643886,1705277478693,-500.0,0.00030958,2]
[311643887,1705277478703,-398.87,0.00030958,2]
[311643888,1705277478713,-743.46,0.00030958,2]
[311643889,1705277478722,-500.0,0.00030958,2]
[311643890,1705277478732,-500.0,0.00030958,2]
[311643891,1705277478742,-500.0,0.00030958,2]
[311643892,1705277478752,-500.0,0.00030958,2]
[311643893,1705277478761,-505.34,0.00030958,2]
[311643894,1705277478771,-500.0,0.00030958,2]
[311643895,1705277478781,-500.0,0.00030958,2]
[311643896,1705277478791,-500.0,0.00030958,2]
[311643897,1705277478802,-500.0,0.00030958,2]
[311643898,1705277478811,-500.0,0.00030958,2]
[311643899,1705277478821,-250.0,0.00030958,2]
[311643900,1705277478830,-500.0,0.00030958,2]
[311643901,1705277478840,-500.0,0.00030958,2]
[311643902,1705277478850,-500.0,0.00030958,2]
[311643903,1705277478860,-500.0,0.00030958,2]
[311643904,1705277478870,-500.0,0.00030958,2]
[311643905,1705277478879,-500.0,0.00030958,2]
[311643906,1705277478888,-500.0,0.00030958,2]
[311643907,1705277478898,-500.0,0.00030958,2]
[311643908,1705277478907,-500.0,0.00030958,2]
[311643909,1705277478917,-500.0,0.00030958,2]
[311643910,1705277478927,-607.31,0.00030958,2]
[311643911,1705277478938,-500.0,0.00030958,2]
[311643912,1705277478948,-550.29,0.00030958,2]
[311643913,1705277478957,-500.0,0.00030958,2]
[311643914,1705277478967,-209.01725838,0.00030958,2]
[311643915,1705277478977,-714.46,0.00030958,2]
[311643916,1705277478987,-343.09707287,0.00030958,2]
[311643917,1705277478997,-500.0,0.00030958,2]
[311643918,1705277479007,-500.0,0.00030958,2]
[311643919,1705277479016,-500.0,0.00030958,2]
[311643920,1705277479026,-551.84,0.00030958,2]
[311643921,1705277479035,-500.0,0.00030958,2]
[311643922,1705277479045,-521.18,0.00030958,2]
[311643923,1705277479067,-500.0,0.00030958,2]
[311643924,1705277479078,-733.24,0.00030958,2]
[311643925,1705277479090,-500.0,0.00030958,2]
[311643926,1705277479101,-500.0,0.00030958,2]
[311643927,1705277479111,-648.23,0.00030958,2]
[311643928,1705277479121,-500.0,0.00030958,2]
[311643929,1705277479132,-500.0,0.00030958,2]
[311643930,1705277479142,-500.0,0.00030958,2]
[311643931,1705277479153,-500.0,0.00030958,2]
[311643932,1705277479164,-695.45,0.00030958,2]
[311643933,1705277479175,-500.0,0.00030958,2]
[311643934,1705277479189,-500.0,0.00030958,2]
[311643935,1705277479201,-500.0,0.00030958,2]
[311643936,1705277479211,-1205.84,0.00030958,2]
[311643937,1705277479222,-500.0,0.00030958,2]
[311643938,1705277479232,-500.0,0.00030958,2]
[311643939,1705277479242,-541.75,0.00030958,2]
[311643940,1705277479252,-500.0,0.00030958,2]
[311643941,1705277479263,-500.0,0.00030958,2]
[311643942,1705277479273,-988.44,0.00030958,2]
[311643943,1705277479284,-500.0,0.00030958,2]
[311643944,1705277479294,-763.6,0.00030958,2]
[311643945,1705277479304,-500.0,0.00030958,2]
[311643946,1705277479314,-782.23,0.00030958,2]
[311643947,1705277479325,-500.0,0.00030958,2]
[311643948,1705277479335,-569.74,0.00030958,2]
[311643949,1705277479346,-500.0,0.00030958,2]
[311643950,1705277479356,-638.68,0.00030958,2]
[311643951,1705277479366,-500.0,0.00030958,2]
[311643952,1705277479377,-658.61,0.00030958,2]
[311643953,1705277479386,-500.0,0.00030958,2]
[311643954,1705277479397,-500.0,0.00030958,2]
[311643955,1705277479407,-642.67,0.00030958,2]
[311643956,1705277479417,-500.0,0.00030958,2]
[311643957,1705277479428,-514.89,0.00030958,2]
[311643958,1705277479439,-500.0,0.00030958,2]
[311643959,1705277479449,-500.0,0.00030958,2]
[311643960,1705277479460,-500.0,0.00030958,2]
[311643961,1705277479470,-704.97,0.00030958,2]
[311643962,1705277479481,-500.0,0.00030958,2]
[311643963,1705277479492,-500.0,0.00030958,2]
[311643964,1705277479502,-871.47,0.00030958,2]
[311643965,1705277479513,-813.77,0.00030958,2]
[311643966,1705277479523,-679.65,0.00030958,2]
[311643967,1705277479533,-500.0,0.00030958,2]
[311643968,1705277479545,-500.0,0.00030958,2]
[311643969,1705277479556,-500.0,0.00030958,2]
[311643970,1705277479568,-500.0,0.00030958,2]
[311643971,1705277479579,-500.0,0.00030958,2]
[311643972,1705277479590,-500.0,0.00030958,2]
[311643973,1705277479601,-500.0,0.00030958,2]
[311643974,1705277479612,-500.0,0.00030958,2]
[311643975,1705277479622,-500.0,0.00030958,2]
[311643976,1705277479857,-500.0,0.00030958,2]
[311643977,1705277479877,-500.0,0.00030958,2]
[311643978,1705277479897,-500.0,0.00030958,2]
[311643979,1705277479908,-500.0,0.00030958,2]
[311643980,1705277479918,-500.0,0.00030958,2]
[311643981,1705277479928,-500.0,0.00030958,2]
[311643982,1705277479946,-500.0,0.00030958,2]
[311643983,1705277479957,-500.0,0.00030958,2]
[311643984,1705277479967,-500.0,0.00030958,2]
[311643985,1705277479976,-540.75,0.00030958,2]
[311643986,1705277479986,-500.0,0.00030958,2]
[311643987,1705277479995,-500.0,0.00030958,2]
[311643988,1705277480004,-721.4,0.00030958,2]
[311643989,1705277480014,-617.03,0.00030958,2]
[311643990,1705277480023,-500.0,0.00030958,2]
[311643991,1705277480033,-514.47,0.00030958,2]
[311643992,1705277480042,-715.38,0.00030958,2]
[311643993,1705277480053,-500.0,0.00030958,2]
[311643994,1705277480063,-500.0,0.00030958,2]
[311643995,1705277480074,-1074.67,0.00030958,2]
[311643996,1705277480085,-500.0,0.00030958,2]
[311643997,1705277480095,-720.67,0.00030958,2]
[311643998,1705277480106,-500.0,0.00030958,2]
[311643999,1705277480116,-500.0,0.00030958,2]
[311644000,1705277480128,-631.19,0.00030958,2]
[311644001,1705277480138,-500.0,0.00030958,2]
[311644002,1705277480148,-500.0,0.00030958,2]
[311644003,1705277480158,-500.0,0.00030958,2]
[311644004,1705277480169,-500.0,0.00030958,2]
[311644005,1705277480179,-601.48,0.00030958,2]
[311644006,1705277480194,-500.0,0.00030958,2]
[311644007,1705277480203,-658.07,0.00030958,2]
[311644008,1705277480214,-500.0,0.00030958,2]
[311644009,1705277480223,-500.0,0.00030958,2]
[311644010,1705277480233,-500.0,0.00030958,2]
[311644011,1705277480242,-519.11,0.00030958,2]
[311644012,1705277480252,-500.0,0.00030958,2]
[311644013,1705277480262,-786.04,0.00030958,2]
[311644014,1705277480271,-500.0,0.00030958,2]
[311644015,1705277480282,-500.0,0.00030958,2]
[311644016,1705277480292,-500.0,0.00030958,2]
[311644017,1705277480302,-596.67,0.00030958,2]
[311644018,1705277480311,-500.0,0.00030958,2]
[311644019,1705277480321,-500.0,0.00030958,2]
[311644020,1705277480331,-500.0,0.00030958,2]
[311644021,1705277480341,-778.66,0.00030958,2]
[311644022,1705277480351,-500.0,0.00030958,2]
[311644023,1705277480361,-1464.11,0.00030958,2]
[311644024,1705277480371,-500.0,0.00030958,2]
[311644025,1705277480381,-550.2,0.00030958,2]
[311644026,1705277480391,-1056.59,0.00030958,2]
[311644027,1705277480401,-801.98,0.00030958,2]
[311644028,1705277480410,-500.0,0.00030958,2]
[311644029,1705277480419,-500.0,0.00030958,2]
[311644030,1705277480429,-761.42,0.00030958,2]
[311644031,1705277480441,-500.0,0.00030958,2]
[311644032,1705277480451,-665.84,0.00030958,2]
[311644033,1705277480462,-500.0,0.00030958,2]
[311644034,1705277480473,-378.41869137,0.00030958,2]
[311644035,1705277481216,-121.58130863,0.00030958,2]
[311644036,1705277481226,-500.0,0.00030958,2]
[311644037,1705277481236,-352.20084777,0.00030958,2]
[311644038,1705277481392,-1116.09,0.00030136,2]
[311644039,1705277481402,-170.16915223,0.00030958,2]
[311644040,1705277481412,-500.0,0.00030958,2]
[311644041,1705277481422,-897.17,0.00030958,2]
[311644042,1705277481432,-500.0,0.00030958,2]
[311644043,1705277481443,-500.0,0.00030958,2]
[311644044,1705277481453,-532.51,0.00030958,2]
[311644045,1705277481462,-500.0,0.00030958,2]
[311644046,1705277481472,-500.0,0.00030958,2]
[311644047,1705277481482,-500.0,0.00030958,2]
[311644048,1705277481491,-500.0,0.00030958,2]
[311644049,1705277481500,-528.07,0.00030958,2]
[311644050,1705277481510,-500.0,0.00030958,2]
[311644051,1705277481519,-500.0,0.00030958,2]
[311644052,1705277481529,-500.0,0.00030958,2]
[311644053,1705277481539,-500.0,0.00030958,2]
[311644054,1705277481548,-814.02,0.00030958,2]
[311644055,1705277481558,-500.0,0.00030958,2]
[311644056,1705277481570,-500.0,0.00030958,2]
[311644057,1705277481579,-500.0,0.00030958,2]
[311644058,1705277481590,-500.0,0.00030958,2]
[311644059,1705277481600,-590.0,0.00030958,2]
[311644060,1705277481609,-500.0,0.00030958,2]
[311644061,1705277481619,-500.0,0.00030958,2]
[311644062,1705277481628,-615.38,0.00030958,2]
[311644063,1705277481638,-500.0,0.00030958,2]